[Event "Titled Tuesday Blitz March 29 Late 2022"]
[White "Bogumil, Tatiana"]
[Black "Ronka, Erik"]
[WhiteFideId "4110579"]
[BlackFideId "505080"]
[WhiteElo "1761"]
[BlackElo "2264"]
[Result "0-1"]
[Round "02"]
[TimeControl "180+1"]
[Date "2022.03.30"]
[WhiteClock "0:00:01"]
[BlackClock "0:00:40"]

1. Nf3 {[%clk 0:01:47]}  d5 {[%clk 0:02:58]} 2. c4 {[%clk 0:01:46]}  c6 {[%clk 0:02:58]} 3. b3 {[%clk 0:01:43]}  Bf5 {[%clk 0:02:55]} 4. Bb2 {[%clk 0:01:43]}  e6 {[%clk 0:02:55]} 5. g3 {[%clk 0:01:41]}  Nd7 {[%clk 0:02:54]} 6. Bg2 {[%clk 0:01:42]}  Ngf6 {[%clk 0:02:55]} 7. O-O {[%clk 0:01:42]}  h6 {[%clk 0:02:55]} 8. d3 {[%clk 0:01:43]}  Bd6 {[%clk 0:02:56]} 9. Nbd2 {[%clk 0:01:43]}  Bh7 {[%clk 0:02:52]} 10. Re1 {[%clk 0:01:43]}  O-O {[%clk 0:02:38]} 11. a3 {[%clk 0:01:39]}  a5 {[%clk 0:02:35]} 12. Qc1 {[%clk 0:01:34]}  e5 {[%clk 0:02:28]} 13. Bc3 {[%clk 0:01:19]}  Qe7 {[%clk 0:02:24]} 14. e4 {[%clk 0:01:06]}  dxe4 {[%clk 0:02:20]} 15. dxe4 {[%clk 0:01:06]}  Nc5 {[%clk 0:02:16]} 16. Qb1 {[%clk 0:00:55]}  Nfd7 {[%clk 0:02:11]} 17. Nh4 {[%clk 0:00:50]}  g6 {[%clk 0:01:37]} 18. Nf1 {[%clk 0:00:38]}  Ne6 {[%clk 0:01:35]} 19. Qc1 {[%clk 0:00:31]}  h5 {[%clk 0:01:19]} 20. Nf3 {[%clk 0:00:26]}  f6 {[%clk 0:00:59]} 21. Ne3 {[%clk 0:00:15]}  Bc5 {[%clk 0:00:56]} 22. Nh4 {[%clk 0:00:13]}  Nd4 {[%clk 0:00:55]} 23. Qb2 {[%clk 0:00:11]}  Rfd8 {[%clk 0:00:53]} 24. Nc2 {[%clk 0:00:09]}  Nf8 {[%clk 0:00:52]} 25. Nxd4 {[%clk 0:00:09]}  Bxd4 {[%clk 0:00:52]} 26. Bxd4 {[%clk 0:00:09]}  Rxd4 {[%clk 0:00:52]} 27. Nf3 {[%clk 0:00:08]}  Rd7 {[%clk 0:00:51]} 28. b4 {[%clk 0:00:08]}  Ne6 {[%clk 0:00:50]} 29. c5 {[%clk 0:00:08]}  g5 {[%clk 0:00:49]} 30. Rad1 {[%clk 0:00:07]}  Rxd1 {[%clk 0:00:47]} 31. Rxd1 {[%clk 0:00:07]}  Bxe4 {[%clk 0:00:47]} 32. Nd2 {[%clk 0:00:01]}  Bxg2 {[%clk 0:00:47]} 33. Kxg2 {[%clk 0:00:01]}  Rd8 {[%clk 0:00:47]} 34. Qb3 {[%clk 0:00:01]}  Kg7 {[%clk 0:00:46]} 35. Ne4 {[%clk 0:00:01]}  Nd4 {[%clk 0:00:44]} 36. Qc3 {[%clk 0:00:01]}  Qe6 {[%clk 0:00:40]} 0-1


[Site "https://www.chess.com"]

[Event "Titled Tuesday Blitz March 29 Late 2022"]
[White "Bortnyk, Olexandr"]
[Black "Guz, Ari"]
[WhiteFideId "14120828"]
[BlackFideId "2825759"]
[WhiteElo "2723"]
[BlackElo "1913"]
[Result "0-1"]
[Round "02"]
[TimeControl "180+1"]
[Date "2022.03.29"]
[WhiteClock "0:00:12"]
[BlackClock "0:00:57"]

1. d4 {[%clk 0:03:00]}  d5 {[%clk 0:02:58]} 2. Nc3 {[%clk 0:03:00]}  c6 {[%clk 0:02:53]} 3. Bf4 {[%clk 0:02:59]}  g6 {[%clk 0:02:52]} 4. e4 {[%clk 0:02:57]}  dxe4 {[%clk 0:02:52]} 5. Nxe4 {[%clk 0:02:56]}  Bg7 {[%clk 0:02:53]} 6. c3 {[%clk 0:02:51]}  Nf6 {[%clk 0:02:51]} 7. Nxf6+ {[%clk 0:02:48]}  Bxf6 {[%clk 0:02:51]} 8. Bc4 {[%clk 0:02:38]}  O-O {[%clk 0:02:50]} 9. h4 {[%clk 0:02:33]}  h5 {[%clk 0:02:47]} 10. Nf3 {[%clk 0:02:31]}  Nd7 {[%clk 0:02:43]} 11. g4 {[%clk 0:02:17]}  Nb6 {[%clk 0:02:42]} 12. gxh5 {[%clk 0:02:00]}  Nxc4 {[%clk 0:02:41]} 13. hxg6 {[%clk 0:02:01]}  Qd5 {[%clk 0:02:35]} 14. Ng5 {[%clk 0:01:15]}  fxg6 {[%clk 0:02:20]} 15. Rg1 {[%clk 0:00:57]}  Bxg5 {[%clk 0:01:56]} 16. Bxg5 {[%clk 0:00:54]}  Qe4+ {[%clk 0:01:56]} 17. Qe2 {[%clk 0:00:54]}  Qxe2+ {[%clk 0:01:57]} 18. Kxe2 {[%clk 0:00:55]}  Nxb2 {[%clk 0:01:49]} 19. Bc1 {[%clk 0:00:50]}  Nc4 {[%clk 0:01:47]} 20. Rxg6+ {[%clk 0:00:50]}  Kf7 {[%clk 0:01:48]} 21. Rg3 {[%clk 0:00:50]}  Be6 {[%clk 0:01:45]} 22. Bh6 {[%clk 0:00:46]}  Rg8 {[%clk 0:01:44]} 23. Bg5 {[%clk 0:00:45]}  Nd6 {[%clk 0:01:44]} 24. Rf3+ {[%clk 0:00:38]}  Ke8 {[%clk 0:01:44]} 25. Re3 {[%clk 0:00:38]}  Kd7 {[%clk 0:01:43]} 26. Rh1 {[%clk 0:00:36]}  Bc4+ {[%clk 0:01:37]} 27. Kd2 {[%clk 0:00:35]}  e6 {[%clk 0:01:36]} 28. Kc2 {[%clk 0:00:29]}  Bxa2 {[%clk 0:01:31]} 29. f4 {[%clk 0:00:29]}  Bd5 {[%clk 0:01:31]} 30. Rh2 {[%clk 0:00:29]}  Nf5 {[%clk 0:01:30]} 31. Re1 {[%clk 0:00:28]}  Raf8 {[%clk 0:01:29]} 32. h5 {[%clk 0:00:28]}  Rh8 {[%clk 0:01:23]} 33. h6 {[%clk 0:00:28]}  Rh7 {[%clk 0:01:24]} 34. Kd3 {[%clk 0:00:27]}  Rfh8 {[%clk 0:01:24]} 35. c4 {[%clk 0:00:27]}  Bf3 {[%clk 0:01:23]} 36. Rf1 {[%clk 0:00:26]}  Bg4 {[%clk 0:01:05]} 37. Rg1 {[%clk 0:00:27]}  Nxh6 {[%clk 0:01:05]} 38. Bxh6 {[%clk 0:00:27]}  Rxh6 {[%clk 0:01:06]} 39. Rxh6 {[%clk 0:00:22]}  Bf5+ {[%clk 0:01:06]} 40. Kc3 {[%clk 0:00:22]}  Rxh6 {[%clk 0:01:06]} 41. Rg7+ {[%clk 0:00:23]}  Kd6 {[%clk 0:01:07]} 42. Rxb7 {[%clk 0:00:20]}  a5 {[%clk 0:01:07]} 43. c5+ {[%clk 0:00:16]}  Kd5 {[%clk 0:01:07]} 44. Rd7+ {[%clk 0:00:17]}  Ke4 {[%clk 0:01:08]} 45. Rd6 {[%clk 0:00:18]}  Rh3+ {[%clk 0:01:06]} 46. Kb2 {[%clk 0:00:17]}  a4 {[%clk 0:00:53]} 47. Rxc6 {[%clk 0:00:17]}  a3+ {[%clk 0:00:53]} 48. Ka2 {[%clk 0:00:17]}  Kxd4 {[%clk 0:00:54]} 49. Rb6 {[%clk 0:00:02]}  Kxc5 {[%clk 0:00:44]} 50. Rb8 {[%clk 0:00:01]}  Be4 {[%clk 0:00:44]} 51. Rc8+ {[%clk 0:00:02]}  Kd6 {[%clk 0:00:44]} 52. Rd8+ {[%clk 0:00:02]}  Ke7 {[%clk 0:00:44]} 53. Rd1 {[%clk 0:00:02]}  Bd5+ {[%clk 0:00:45]} 54. Kb1 {[%clk 0:00:02]}  a2+ {[%clk 0:00:46]} 55. Kb2 {[%clk 0:00:02]}  Rb3+ {[%clk 0:00:46]} 56. Ka1 {[%clk 0:00:02]}  Rb1+ {[%clk 0:00:46]} 57. Rxb1 {[%clk 0:00:02]}  axb1=Q+ {[%clk 0:00:47]} 58. Kxb1 {[%clk 0:00:03]}  Kf6 {[%clk 0:00:48]} 59. Kc2 {[%clk 0:00:03]}  Kf5 {[%clk 0:00:49]} 60. Kd2 {[%clk 0:00:04]}  Kxf4 {[%clk 0:00:50]} 61. Ke1 {[%clk 0:00:05]}  Be4 {[%clk 0:00:51]} 62. Kf2 {[%clk 0:00:06]}  Bf5 {[%clk 0:00:52]} 63. Ke2 {[%clk 0:00:06]}  e5 {[%clk 0:00:53]} 64. Kf2 {[%clk 0:00:07]}  e4 {[%clk 0:00:54]} 65. Ke2 {[%clk 0:00:08]}  Bg4+ {[%clk 0:00:54]} 66. Kf2 {[%clk 0:00:09]}  e3+ {[%clk 0:00:55]} 67. Kg1 {[%clk 0:00:10]}  Kf3 {[%clk 0:00:53]} 68. Kf1 {[%clk 0:00:10]}  Bh3+ {[%clk 0:00:54]} 69. Kg1 {[%clk 0:00:10]}  e2 {[%clk 0:00:55]} 70. Kh2 {[%clk 0:00:11]}  Kf2 {[%clk 0:00:56]} 71. Kxh3 {[%clk 0:00:10]}  e1=Q {[%clk 0:00:57]} 72. Kg4 {[%clk 0:00:11]}  Qe3 {[%clk 0:00:57]} 73. Kf5 {[%clk 0:00:12]}  Kf3 {[%clk 0:00:57]} 0-1


[Site "https://www.chess.com"]

[Event "Titled Tuesday Blitz March 29 Late 2022"]
[White "Boyer, Mahel"]
[Black "Fiol, Fabrice"]
[WhiteFideId "45102422"]
[BlackFideId "611670"]
[WhiteElo "2328"]
[BlackElo "2399"]
[Result "1-0"]
[Round "02"]
[TimeControl "180+1"]
[Date "2022.03.30"]
[WhiteClock "0:00:17"]
[BlackClock "0:01:03"]

1. e4 {[%clk 0:02:45]}  c5 {[%clk 0:02:59]} 2. d3 {[%clk 0:02:44]}  a6 {[%clk 0:02:53]} 3. g3 {[%clk 0:02:44]}  g6 {[%clk 0:02:53]} 4. Bg2 {[%clk 0:02:45]}  Bg7 {[%clk 0:02:53]} 5. f4 {[%clk 0:02:22]}  e6 {[%clk 0:02:52]} 6. Nf3 {[%clk 0:02:20]}  d5 {[%clk 0:02:52]} 7. O-O {[%clk 0:02:14]}  Ne7 {[%clk 0:02:50]} 8. c3 {[%clk 0:02:13]}  dxe4 {[%clk 0:02:47]} 9. dxe4 {[%clk 0:02:13]}  Qxd1 {[%clk 0:02:47]} 10. Rxd1 {[%clk 0:02:14]}  Nbc6 {[%clk 0:02:46]} 11. Be3 {[%clk 0:02:15]}  b6 {[%clk 0:02:45]} 12. Na3 {[%clk 0:02:13]}  O-O {[%clk 0:02:34]} 13. Nc4 {[%clk 0:02:12]}  Rb8 {[%clk 0:02:34]} 14. a4 {[%clk 0:02:10]}  Rd8 {[%clk 0:02:32]} 15. Rxd8+ {[%clk 0:02:08]}  Nxd8 {[%clk 0:02:32]} 16. a5 {[%clk 0:02:09]}  b5 {[%clk 0:02:32]} 17. Bxc5 {[%clk 0:01:35]}  bxc4 {[%clk 0:02:31]} 18. Bxe7 {[%clk 0:01:35]}  Nc6 {[%clk 0:02:31]} 19. Ba3 {[%clk 0:01:35]}  Bf8 {[%clk 0:02:30]} 20. Bxf8 {[%clk 0:01:30]}  Kxf8 {[%clk 0:02:31]} 21. Ra2 {[%clk 0:01:31]}  Rb5 {[%clk 0:02:29]} 22. Bf1 {[%clk 0:01:22]}  Rxa5 {[%clk 0:02:26]} 23. Bxc4 {[%clk 0:01:22]}  Rxa2 {[%clk 0:02:20]} 24. Bxa2 {[%clk 0:01:23]}  a5 {[%clk 0:02:20]} 25. Bc4 {[%clk 0:01:19]}  Ke7 {[%clk 0:02:18]} 26. e5 {[%clk 0:01:20]}  Bb7 {[%clk 0:02:12]} 27. Kf2 {[%clk 0:01:19]}  f6 {[%clk 0:01:59]} 28. Bb5 {[%clk 0:00:50]}  Na7 {[%clk 0:01:54]} 29. exf6+ {[%clk 0:00:43]}  Kxf6 {[%clk 0:01:55]} 30. Ba4 {[%clk 0:00:43]}  Bxf3 {[%clk 0:01:51]} 31. Kxf3 {[%clk 0:00:44]}  e5 {[%clk 0:01:50]} 32. Ke4 {[%clk 0:00:41]}  exf4 {[%clk 0:01:50]} 33. gxf4 {[%clk 0:00:42]}  Nc8 {[%clk 0:01:48]} 34. b4 {[%clk 0:00:39]}  axb4 {[%clk 0:01:47]} 35. cxb4 {[%clk 0:00:40]}  g5 {[%clk 0:01:41]} 36. fxg5+ {[%clk 0:00:38]}  Kxg5 {[%clk 0:01:41]} 37. Kd4 {[%clk 0:00:36]}  Kf4 {[%clk 0:01:34]} 38. Kc5 {[%clk 0:00:29]}  h5 {[%clk 0:01:25]} 39. Bd7 {[%clk 0:00:25]}  Ne7 {[%clk 0:01:23]} 40. b5 {[%clk 0:00:21]}  Kf3 {[%clk 0:01:20]} 41. b6 {[%clk 0:00:20]}  Kg2 {[%clk 0:01:17]} 42. h3 {[%clk 0:00:20]}  Ng6 {[%clk 0:01:16]} 43. b7 {[%clk 0:00:20]}  Ne5 {[%clk 0:01:14]} 44. Bf5 {[%clk 0:00:18]}  Kg3 {[%clk 0:01:03]} 45. b8=Q {[%clk 0:00:17]} 1-0


[Site "https://www.chess.com"]

[Event "Titled Tuesday Blitz March 29 Late 2022"]
[White "Caruana, Fabiano"]
[Black "Badelka, Olga"]
[WhiteFideId "2020009"]
[BlackFideId "13509926"]
[WhiteElo "2744"]
[BlackElo "2165"]
[Result "1-0"]
[Round "02"]
[TimeControl "180+1"]
[Date "2022.03.30"]
[WhiteClock "0:00:38"]
[BlackClock "0:00:04"]

1. b3 {[%clk 0:03:00]}  c5 {[%clk 0:02:57]} 2. Bb2 {[%clk 0:03:00]}  Nc6 {[%clk 0:02:56]} 3. e3 {[%clk 0:02:58]}  d5 {[%clk 0:02:53]} 4. Bb5 {[%clk 0:02:58]}  Nf6 {[%clk 0:02:30]} 5. Nf3 {[%clk 0:02:54]}  e6 {[%clk 0:02:30]} 6. O-O {[%clk 0:02:53]}  Bd6 {[%clk 0:02:29]} 7. c4 {[%clk 0:02:53]}  O-O {[%clk 0:02:21]} 8. Nc3 {[%clk 0:02:46]}  dxc4 {[%clk 0:02:10]} 9. Bxc6 {[%clk 0:02:41]}  bxc6 {[%clk 0:02:10]} 10. bxc4 {[%clk 0:02:41]}  Qc7 {[%clk 0:02:07]} 11. d3 {[%clk 0:02:39]}  Bd7 {[%clk 0:01:57]} 12. e4 {[%clk 0:02:34]}  Ng4 {[%clk 0:01:45]} 13. h3 {[%clk 0:02:31]}  Ne5 {[%clk 0:01:45]} 14. Na4 {[%clk 0:02:20]}  Nxf3+ {[%clk 0:01:39]} 15. Qxf3 {[%clk 0:02:21]}  e5 {[%clk 0:01:38]} 16. Bc3 {[%clk 0:02:12]}  f5 {[%clk 0:01:37]} 17. exf5 {[%clk 0:02:02]}  Rxf5 {[%clk 0:01:36]} 18. Qe3 {[%clk 0:02:02]}  Raf8 {[%clk 0:01:26]} 19. Nxc5 {[%clk 0:01:58]}  Bxc5 {[%clk 0:01:21]} 20. Qxc5 {[%clk 0:01:59]}  Rg5 {[%clk 0:01:11]} 21. Qe3 {[%clk 0:01:50]}  Qd8 {[%clk 0:00:53]} 22. Rae1 {[%clk 0:01:35]}  h6 {[%clk 0:00:23]} 23. Bxe5 {[%clk 0:01:30]}  Qa5 {[%clk 0:00:19]} 24. f4 {[%clk 0:01:28]}  Rg6 {[%clk 0:00:18]} 25. Re2 {[%clk 0:01:25]}  Bf5 {[%clk 0:00:16]} 26. Kh2 {[%clk 0:01:17]}  h5 {[%clk 0:00:16]} 27. Rb1 {[%clk 0:01:09]}  h4 {[%clk 0:00:05]} 28. Rb7 {[%clk 0:01:07]}  Qa3 {[%clk 0:00:04]} 29. Rxa7 {[%clk 0:00:49]}  Qxd3 {[%clk 0:00:04]} 30. Qxd3 {[%clk 0:00:49]}  Bxd3 {[%clk 0:00:04]} 31. Rd2 {[%clk 0:00:45]}  Bxc4 {[%clk 0:00:04]} 32. Rdd7 {[%clk 0:00:39]}  Rf7 {[%clk 0:00:04]} 33. Ra8+ {[%clk 0:00:37]}  Kh7 {[%clk 0:00:04]} 34. Rdd8 {[%clk 0:00:38]} 1-0


[Site "https://www.chess.com"]

[Event "Titled Tuesday Blitz March 29 Late 2022"]
[White "Chernobay, Artem"]
[Black "Qashashvili, Alexandre"]
[WhiteFideId "4167406"]
[BlackFideId "13600842"]
[WhiteElo "2473"]
[BlackElo "2316"]
[Result "1-0"]
[Round "02"]
[TimeControl "180+1"]
[Date "2022.03.30"]
[WhiteClock "0:02:20"]
[BlackClock "0:02:12"]

1. e4 {[%clk 0:03:00]}  c6 {[%clk 0:02:40]} 2. d4 {[%clk 0:02:59]}  d5 {[%clk 0:02:41]} 3. Nd2 {[%clk 0:02:59]}  dxe4 {[%clk 0:02:41]} 4. Nxe4 {[%clk 0:03:00]}  Nd7 {[%clk 0:02:41]} 5. Bc4 {[%clk 0:02:56]}  Ngf6 {[%clk 0:02:41]} 6. Ng5 {[%clk 0:02:51]}  e6 {[%clk 0:02:40]} 7. Qe2 {[%clk 0:02:50]}  Nb6 {[%clk 0:02:40]} 8. Bb3 {[%clk 0:02:46]}  Qxd4 {[%clk 0:02:38]} 9. N1f3 {[%clk 0:02:45]}  Qd8 {[%clk 0:02:34]} 10. Ne5 {[%clk 0:02:40]}  Qd4 {[%clk 0:02:27]} 11. Nexf7 {[%clk 0:02:35]}  Rg8 {[%clk 0:02:26]} 12. Nxe6 {[%clk 0:02:23]}  Bxe6 {[%clk 0:02:17]} 13. Qxe6+ {[%clk 0:02:21]}  Be7 {[%clk 0:02:16]} 14. O-O {[%clk 0:02:20]}  Qe4 {[%clk 0:02:12]} 15. Nd6+ {[%clk 0:02:20]} 1-0


[Site "https://www.chess.com"]

[Event "Titled Tuesday Blitz March 29 Late 2022"]
[White "Chyngyz, Sultai"]
[Black "Omariev, Maksim"]
[WhiteFideId "13803158"]
[BlackFideId "4193423"]
[WhiteElo "1365"]
[BlackElo "2518"]
[Result "1-0"]
[Round "02"]
[TimeControl "180+1"]
[Date "2022.03.30"]
[WhiteClock "0:00:38"]
[BlackClock "0:00:02"]

1. e4 {[%clk 0:02:50]}  c5 {[%clk 0:02:53]} 2. Nf3 {[%clk 0:02:50]}  d6 {[%clk 0:02:54]} 3. d4 {[%clk 0:02:49]}  cxd4 {[%clk 0:02:54]} 4. Nxd4 {[%clk 0:02:50]}  Nf6 {[%clk 0:02:55]} 5. Nc3 {[%clk 0:02:50]}  a6 {[%clk 0:02:55]} 6. Be2 {[%clk 0:02:50]}  e6 {[%clk 0:02:55]} 7. Nb3 {[%clk 0:02:50]}  Be7 {[%clk 0:02:56]} 8. O-O {[%clk 0:02:51]}  O-O {[%clk 0:02:56]} 9. Be3 {[%clk 0:02:51]}  b5 {[%clk 0:02:56]} 10. a3 {[%clk 0:02:50]}  Bb7 {[%clk 0:02:56]} 11. Bf3 {[%clk 0:02:50]}  Qc7 {[%clk 0:02:54]} 12. Qd3 {[%clk 0:02:46]}  Nbd7 {[%clk 0:02:54]} 13. Bf4 {[%clk 0:02:42]}  Rfd8 {[%clk 0:02:39]} 14. Rad1 {[%clk 0:02:37]}  Nb6 {[%clk 0:02:13]} 15. Na5 {[%clk 0:02:32]}  Ne8 {[%clk 0:01:24]} 16. Nxb7 {[%clk 0:02:27]}  Qxb7 {[%clk 0:01:24]} 17. b3 {[%clk 0:02:18]}  Rac8 {[%clk 0:01:24]} 18. Ne2 {[%clk 0:02:17]}  Qc7 {[%clk 0:01:09]} 19. Rd2 {[%clk 0:02:04]}  Nd7 {[%clk 0:01:00]} 20. Qe3 {[%clk 0:01:57]}  Ne5 {[%clk 0:00:55]} 21. Bxe5 {[%clk 0:01:56]}  dxe5 {[%clk 0:00:56]} 22. Rfd1 {[%clk 0:01:55]}  Rxd2 {[%clk 0:00:51]} 23. Rxd2 {[%clk 0:01:55]}  Bxa3 {[%clk 0:00:50]} 24. Qg5 {[%clk 0:01:49]}  Bb4 {[%clk 0:00:41]} 25. c3 {[%clk 0:01:47]}  Bxc3 {[%clk 0:00:35]} 26. Rc2 {[%clk 0:01:35]}  b4 {[%clk 0:00:34]} 27. Ng3 {[%clk 0:01:35]}  h6 {[%clk 0:00:31]} 28. Qe3 {[%clk 0:01:29]}  Nf6 {[%clk 0:00:27]} 29. h3 {[%clk 0:01:27]}  a5 {[%clk 0:00:26]} 30. Kh2 {[%clk 0:01:26]}  Qc5 {[%clk 0:00:26]} 31. Qd3 {[%clk 0:01:23]}  Qd4 {[%clk 0:00:23]} 32. Qa6 {[%clk 0:01:19]}  Rc5 {[%clk 0:00:13]} 33. Ne2 {[%clk 0:01:19]}  Qd1 {[%clk 0:00:07]} 34. Rc1 {[%clk 0:01:04]}  Qxb3 {[%clk 0:00:06]} 35. Qa8+ {[%clk 0:01:03]}  Kh7 {[%clk 0:00:06]} 36. Ng3 {[%clk 0:01:03]}  Bd4 {[%clk 0:00:05]} 37. Rxc5 {[%clk 0:00:59]}  Bxc5 {[%clk 0:00:05]} 38. Nh1 {[%clk 0:00:53]}  a4 {[%clk 0:00:04]} 39. Qc6 {[%clk 0:00:52]}  Qc4 {[%clk 0:00:04]} 40. Qxa4 {[%clk 0:00:51]}  Qc3 {[%clk 0:00:03]} 41. Bd1 {[%clk 0:00:43]}  Nxe4 {[%clk 0:00:02]} 42. Bc2 {[%clk 0:00:43]}  f5 {[%clk 0:00:03]} 43. f3 {[%clk 0:00:43]}  f4 {[%clk 0:00:03]} 44. Bxe4+ {[%clk 0:00:42]}  Kg8 {[%clk 0:00:04]} 45. Qe8+ {[%clk 0:00:41]}  Bf8 {[%clk 0:00:03]} 46. Qxe6+ {[%clk 0:00:41]}  Kh8 {[%clk 0:00:03]} 47. Qf5 {[%clk 0:00:39]}  Kg8 {[%clk 0:00:02]} 48. Bd5+ {[%clk 0:00:38]}  Kh8 {[%clk 0:00:02]} 49. Qxf8+ {[%clk 0:00:39]}  Kh7 {[%clk 0:00:02]} 50. Be4+ {[%clk 0:00:38]}  g6 {[%clk 0:00:02]} 51. Qf7+ {[%clk 0:00:39]}  Kh8 {[%clk 0:00:03]} 52. Qf6+ {[%clk 0:00:38]}  Kg8 {[%clk 0:00:02]} 53. Bd5+ {[%clk 0:00:38]}  Kh7 {[%clk 0:00:02]} 54. Qf7+ {[%clk 0:00:38]} 1-0


[Site "https://www.chess.com"]

[Event "Titled Tuesday Blitz March 29 Late 2022"]
[White "Curtis, John"]
[Black "Derraugh, Geordie"]
[WhiteFideId "3200256"]
[BlackFideId "2603950"]
[WhiteElo "2203"]
[BlackElo "2116"]
[Result "1/2-1/2"]
[Round "02"]
[TimeControl "180+1"]
[Date "2022.03.30"]
[WhiteClock "0:00:33"]
[BlackClock "0:00:05"]

1. e4 {[%clk 0:03:00]}  c5 {[%clk 0:02:59]} 2. Nf3 {[%clk 0:03:00]}  d6 {[%clk 0:02:59]} 3. d4 {[%clk 0:03:00]}  cxd4 {[%clk 0:03:00]} 4. Nxd4 {[%clk 0:03:00]}  Nf6 {[%clk 0:03:01]} 5. Nc3 {[%clk 0:03:01]}  a6 {[%clk 0:03:01]} 6. Bg5 {[%clk 0:03:01]}  e6 {[%clk 0:02:59]} 7. f4 {[%clk 0:02:59]}  Qc7 {[%clk 0:02:59]} 8. Bxf6 {[%clk 0:02:57]}  gxf6 {[%clk 0:02:59]} 9. Qh5 {[%clk 0:02:58]}  Qc5 {[%clk 0:02:52]} 10. Qxc5 {[%clk 0:02:57]}  dxc5 {[%clk 0:02:53]} 11. Nf3 {[%clk 0:02:55]}  Nc6 {[%clk 0:02:52]} 12. f5 {[%clk 0:02:54]}  Rg8 {[%clk 0:02:47]} 13. O-O-O {[%clk 0:02:50]}  b5 {[%clk 0:02:44]} 14. fxe6 {[%clk 0:02:47]}  fxe6 {[%clk 0:02:43]} 15. g3 {[%clk 0:02:36]}  Be7 {[%clk 0:02:32]} 16. Bh3 {[%clk 0:02:35]}  Kf7 {[%clk 0:02:18]} 17. Rhf1 {[%clk 0:02:34]}  Ra7 {[%clk 0:02:08]} 18. Ne2 {[%clk 0:02:24]}  e5 {[%clk 0:02:06]} 19. Bxc8 {[%clk 0:02:23]}  Rxc8 {[%clk 0:02:06]} 20. Rd5 {[%clk 0:02:19]}  Ke6 {[%clk 0:02:05]} 21. c3 {[%clk 0:02:15]}  f5 {[%clk 0:01:54]} 22. Rdd1 {[%clk 0:02:08]}  fxe4 {[%clk 0:01:51]} 23. Nd2 {[%clk 0:02:08]}  Bg5 {[%clk 0:01:51]} 24. Kc2 {[%clk 0:02:03]}  Bxd2 {[%clk 0:01:34]} 25. Kxd2 {[%clk 0:02:03]}  Na5 {[%clk 0:01:23]} 26. b3 {[%clk 0:02:02]}  c4 {[%clk 0:01:08]} 27. b4 {[%clk 0:02:02]}  Nc6 {[%clk 0:01:09]} 28. Ke3 {[%clk 0:02:02]}  a5 {[%clk 0:01:09]} 29. a3 {[%clk 0:01:55]}  axb4 {[%clk 0:01:09]} 30. axb4 {[%clk 0:01:55]}  Ra2 {[%clk 0:01:10]} 31. Rf2 {[%clk 0:01:47]}  Rca8 {[%clk 0:00:39]} 32. Kxe4 {[%clk 0:01:38]}  Rc2 {[%clk 0:00:37]} 33. Nf4+ {[%clk 0:01:38]}  exf4 {[%clk 0:00:38]} 34. Rxc2 {[%clk 0:01:38]}  fxg3 {[%clk 0:00:37]} 35. hxg3 {[%clk 0:01:37]}  Rg8 {[%clk 0:00:38]} 36. Re2 {[%clk 0:01:30]}  Ne5 {[%clk 0:00:32]} 37. Rg1 {[%clk 0:01:21]}  Rg4+ {[%clk 0:00:30]} 38. Ke3 {[%clk 0:01:21]}  h5 {[%clk 0:00:30]} 39. Kf2 {[%clk 0:01:20]}  Kf5 {[%clk 0:00:30]} 40. Rf1 {[%clk 0:01:13]}  Nd3+ {[%clk 0:00:23]} 41. Kg2+ {[%clk 0:01:13]}  Kg5 {[%clk 0:00:24]} 42. Kh3 {[%clk 0:01:13]}  h4 {[%clk 0:00:20]} 43. Rg2 {[%clk 0:01:12]}  hxg3 {[%clk 0:00:17]} 44. Rxg3 {[%clk 0:01:12]}  Nf4+ {[%clk 0:00:17]} 45. Kh2 {[%clk 0:01:10]}  Rxg3 {[%clk 0:00:16]} 46. Kxg3 {[%clk 0:01:10]}  Ne2+ {[%clk 0:00:17]} 47. Kf3 {[%clk 0:01:09]}  Nxc3 {[%clk 0:00:18]} 48. Ke3 {[%clk 0:01:07]}  Nd5+ {[%clk 0:00:17]} 49. Kd4 {[%clk 0:01:07]}  Nxb4 {[%clk 0:00:18]} 50. Kc5 {[%clk 0:01:04]}  Nd3+ {[%clk 0:00:18]} 51. Kxb5 {[%clk 0:01:04]}  c3 {[%clk 0:00:19]} 52. Kc4 {[%clk 0:01:03]}  Nf4 {[%clk 0:00:13]} 53. Kxc3 {[%clk 0:01:02]}  Kf5 {[%clk 0:00:13]} 54. Kd4 {[%clk 0:01:02]}  Kg4 {[%clk 0:00:14]} 55. Ke4 {[%clk 0:01:02]}  Ne2 {[%clk 0:00:13]} 56. Rf2 {[%clk 0:01:01]}  Ng3+ {[%clk 0:00:13]} 57. Ke3 {[%clk 0:00:58]}  Nf5+ {[%clk 0:00:13]} 58. Ke4 {[%clk 0:00:58]}  Ng3+ {[%clk 0:00:13]} 59. Ke5 {[%clk 0:00:59]}  Nh5 {[%clk 0:00:11]} 60. Rf8 {[%clk 0:00:56]}  Ng3 {[%clk 0:00:09]} 61. Rf4+ {[%clk 0:00:55]}  Kh3 {[%clk 0:00:10]} 62. Ra4 {[%clk 0:00:56]}  Kg2 {[%clk 0:00:10]} 63. Kf4 {[%clk 0:00:56]}  Ne2+ {[%clk 0:00:10]} 64. Kg4 {[%clk 0:00:56]}  Kf2 {[%clk 0:00:10]} 65. Ra3 {[%clk 0:00:56]}  Nc1 {[%clk 0:00:06]} 66. Ra1 {[%clk 0:00:49]}  Ne2 {[%clk 0:00:06]} 67. Rb1 {[%clk 0:00:47]}  Ke3 {[%clk 0:00:06]} 68. Re1 {[%clk 0:00:47]}  Kd2 {[%clk 0:00:04]} 69. Rh1 {[%clk 0:00:47]}  Ke3 {[%clk 0:00:04]} 70. Rh3+ {[%clk 0:00:47]}  Ke4 {[%clk 0:00:04]} 71. Rh8 {[%clk 0:00:46]}  Nd4 {[%clk 0:00:05]} 72. Rd8 {[%clk 0:00:46]}  Ke3 {[%clk 0:00:05]} 73. Re8+ {[%clk 0:00:46]}  Kd3 {[%clk 0:00:05]} 74. Kf4 {[%clk 0:00:45]}  Kc4 {[%clk 0:00:05]} 75. Ke5 {[%clk 0:00:43]}  Nc6+ {[%clk 0:00:05]} 76. Kd6 {[%clk 0:00:42]}  Nd4 {[%clk 0:00:06]} 77. Re1 {[%clk 0:00:41]}  Kd3 {[%clk 0:00:06]} 78. Rd1+ {[%clk 0:00:41]}  Ke4 {[%clk 0:00:06]} 79. Rh1 {[%clk 0:00:40]}  Nf5+ {[%clk 0:00:06]} 80. Kc5 {[%clk 0:00:39]}  Ne3 {[%clk 0:00:06]} 81. Rh4+ {[%clk 0:00:38]}  Kd3 {[%clk 0:00:06]} 82. Ra4 {[%clk 0:00:38]}  Kc3 {[%clk 0:00:05]} 83. Re4 {[%clk 0:00:35]}  Kd3 {[%clk 0:00:05]} 84. Re8 {[%clk 0:00:35]}  Kd2 {[%clk 0:00:05]} 85. Kd4 {[%clk 0:00:35]}  Nc2+ {[%clk 0:00:06]} 86. Kc4 {[%clk 0:00:34]}  Ne3+ {[%clk 0:00:06]} 87. Kb3 {[%clk 0:00:33]}  Kd3 {[%clk 0:00:06]} 88. Rd8+ {[%clk 0:00:33]}  Ke4 {[%clk 0:00:07]} 89. Kc3 {[%clk 0:00:34]}  Nd5+ {[%clk 0:00:07]} 90. Kd2 {[%clk 0:00:34]}  Nf4 {[%clk 0:00:07]} 91. Re8+ {[%clk 0:00:34]}  Kd4 {[%clk 0:00:07]} 92. Rh8 {[%clk 0:00:33]}  Nd5 {[%clk 0:00:07]} 93. Rh6 {[%clk 0:00:33]}  Ke5 {[%clk 0:00:07]} 94. Kd3 {[%clk 0:00:32]}  Nf4+ {[%clk 0:00:07]} 95. Kc4 {[%clk 0:00:33]}  Ke4 {[%clk 0:00:08]} 96. Rd6 {[%clk 0:00:32]}  Ke3 {[%clk 0:00:08]} 97. Rf6 {[%clk 0:00:31]}  Ke4 {[%clk 0:00:08]} 98. Rf8 {[%clk 0:00:31]}  Ke5 {[%clk 0:00:08]} 99. Rd8 {[%clk 0:00:31]}  Kf5 {[%clk 0:00:08]} 100. Re8 {[%clk 0:00:32]}  Ng6 {[%clk 0:00:06]} 101. Rf8+ {[%clk 0:00:33]}  Nxf8 {[%clk 0:00:05]} 1/2-1/2


[Site "https://www.chess.com"]